Cogmind - Beta 15 @@@ ROGUE MODE // 2025.06.24 @ 17:48:06 Player: 3.14 Result: Self-destructed Performance ------------- Evolutions (6) 3000 Regions Visited (14) 2800 Robots Destroyed (253) 1265 Value Destroyed (9013) 9013 Prototype IDs (17) 340 Alien Tech Used (0) 0 Bonus (3320) 3320 TOTAL SCORE: 19738 Bonus ------- Triggered High Security 500 High Alert Combat Kills 2320 Entered Garrisons 200 Met Data Miner 300 Cogmind --------- Core Integrity 987/1150 Matter 282/300 Energy 309/350 System Corruption 2% Temperature Cool (0) Movement Walking (120) Location -4/Factory Parts ------- > --- POWER (2) -------- Enhanced Fission Core > --- PROPULSION (5) --- Flexi-carbon Leg Flexi-carbon Leg Centrium Leg Centrium Leg Centrium Leg > --- UTILITY (9) ------ Advanced Melee Analysis Suite Advanced Melee Analysis Suite Core Analyzer Armor Integrity Analyzer Nanoactuators Improved Actuator Array Advanced Thermal Shield > --- WEAPON (3) ------- Missile Launcher Spear Spear > --- INVENTORY (5) ---- Light Nuclear Core Flexi-carbon Leg Flexi-carbon Leg Chainsword Peak State ------------ > --- POWER ------------ Enhanced Fission Core Quantum Reactor > --- PROPULSION ------- Enhanced Armored Leg Shield Leg Centrium Leg Centrium Leg Centrium Leg > --- UTILITY ---------- Advanced Melee Analysis Suite Core Analyzer Armor Integrity Analyzer Nanoactuators Improved Actuator Array Improved Medium Armor Plating Medium Reflective Plating Advanced Thermal Shield Improved Hacking Suite > --- WEAPON ----------- Chainsword Spear Spear > --- INVENTORY -------- Flexi-carbon Leg Advanced Melee Analysis Suite Improved Medium Armor Plating Advanced Hardlight Generator Missile Launcher [Rating: 116] Favorites ----------- Power Meta Core Engine Heavy Ion Engine Power Core Meta Core Reactor Quantum Reactor Propulsion Carbon-fiber Leg Treads Light Treads Leg Carbon-fiber Leg Wheel Subdweller Monowheel Utility Large Storage Unit Device Improved Actuator Array Storage Large Storage Unit Processor Core Analyzer Hackware Improved Hacking Suite Protection Improved Medium Armor Plating Weapon Spear Energy Gun Subdweller Laser Ballistic Gun Makeshift Shrapnel Gun Ballistic Cannon Battle Cannon Launcher Missile Launcher Slashing Weapon Scythe Piercing Weapon Spear Build | -11 -10 -10 -8 -7 -7 -7 -7 -6 -6 -6 -6 -5 -5 -4 ------- Run | Yrd Mat Sub Mat Fac Low Low Dat Pro Fac Low Low Fac Gar Fac Slots Evolved 12 | . . . 4 2 . . . . 2 . . 2 . 2 Power 1 | . . . . . . . . . . . . . . 1 Propulsion 3 | . . . 2 . . . . . . . . 1 . . Utility 7 | . . . 2 1 . . . . 2 . . 1 . 1 Weapon 1 | . . . . 1 . . . . . . . . . . Parts Attached 161 | 3 8 7 30 15 1 5 1 1 45 2 1 16 14 12 Power 12 | . 1 1 2 . . 1 . . 4 . . 2 1 . Engine 7 | . 1 . 2 . . 1 . . 3 . . . . . Core 4 | . . 1 . . . . . . 1 . . 2 . . Reactor 1 | . . . . . . . . . . . . . 1 . Propulsion 62 | 2 . 1 17 3 1 2 . . 15 2 . 7 8 4 Treads 4 | 2 . . 2 . . . . . . . . . . . Leg 54 | . . . 12 3 1 2 . . 15 2 . 7 8 4 Wheel 4 | . . 1 3 . . . . . . . . . . . Hover . | . . . . . . . . . . . . . . . Flight . | . . . . . . . . . . . . . . . Utility 60 | 1 3 1 7 8 . . 1 1 18 . 1 7 4 8 Device 21 | 1 . 1 1 3 . . . 1 7 . 1 1 . 5 Storage 4 | . 2 . 1 . . . . . 1 . . . . . Processor 10 | . 1 . 3 2 . . . . 1 . . 1 1 1 Hackware 5 | . . . . 1 . . . . 2 . . 2 . . Protection 20 | . . . 2 2 . . 1 . 7 . . 3 3 2 Artifact . | . . . . . . . . . . . . . . . Weapon 27 | . 4 4 4 4 . 2 . . 8 . . . 1 . Energy Gun 3 | . 1 1 1 . . . . . . . . . . . Energy Cannon . | . . . . . . . . . . . . . . . Ballistic Gun 4 | . 2 2 . . . . . . . . . . . . Ballistic Cannon 1 | . . 1 . . . . . . . . . . . . Launcher 3 | . 1 . . 1 . 1 . . . . . . . . Special Weapon . | . . . . . . . . . . . . . . . Impact Weapon . | . . . . . . . . . . . . . . . Slashing Weapon 9 | . . . 3 3 . 1 . . 1 . . . 1 . Piercing Weapon 7 | . . . . . . . . . 7 . . . . . Special Melee Weapon . | . . . . . . . . . . . . . . . Unidentified Prototypes 6 | . . 1 2 . . . . . 1 . . 2 . . Parts Lost 39 | . . 6 10 . . . . . 14 . . 3 1 5 Power 3 | . . 1 . . . . . . 1 . . . . 1 Propulsion 18 | . . 3 7 . . . . . 5 . . 2 . 1 Utility 15 | . . . 2 . . . . . 8 . . 1 1 3 Weapon 3 | . . 2 1 . . . . . . . . . . . Highest Loss Streak 6 | . . 4 6 . . . . . 3 . . 2 1 4 To Critical Strikes 1 | . . . . . . . . . 1 . . . . . Average Backups 12 | 4 8 12 17 13 14 13 12 11 13 15 14 14 5 4 Power . | 1 1 1 1 1 1 1 1 1 . 1 1 1 1 . Propulsion 2 | 2 2 2 3 1 1 1 1 1 1 7 5 3 1 1 Utility 5 | . 1 3 4 5 7 6 6 5 7 5 6 8 1 1 Weapon 4 | 1 3 5 9 5 5 4 4 4 3 2 2 2 1 1 Tool/Special . | . . . . . . . . . . . . . . . Unused Backups 35 | . 4 . 12 3 . 2 . . 2 . 2 2 3 5 Power 4 | . 2 . 1 . . . . . . . . 1 . . Propulsion 9 | . . . 2 . . . . . 1 . 2 1 . 3 Utility 15 | . 2 . 4 2 . 2 . . . . . . 3 2 Weapon 7 | . . . 5 1 . . . . 1 . . . . . Tool/Special . | . . . . . . . . . . . . . . . Average Slot Usage (%) 93 | . 100 77 90 99 100 100 100 100 92 100 100 98 99 98 Engine 3 | . 14 4 . 7 7 7 7 7 2 6 6 . . . Core 3 | . . 6 7 . . . . . 3 . . 4 4 5 Treads 2 | . 28 5 3 . . . . . . . . . . . Leg 23 | . . . 32 29 30 30 30 30 25 26 26 28 29 26 Device 6 | . 1 6 2 5 7 6 7 6 9 13 13 9 6 10 Storage 7 | . 14 11 8 7 7 7 7 7 6 6 6 5 . . Processor 14 | . 12 11 10 15 23 23 23 21 15 13 13 11 15 17 Protection 6 | . . . 6 6 . . . 1 8 13 12 15 15 12 Energy Gun 1 | . . 9 . . . . . . . . . . . . Ballistic Gun 3 | . 27 13 . . . . . . . . . . . . Slashing Weapon 8 | . . . 15 22 23 22 23 23 . . . . 4 4 Piercing Weapon 6 | . . . . . . . . . 18 20 19 16 11 10 Peak Build Rating 116 | 7 9 26 39 40 40 48 49 49 72 66 66 87 96 116 Average Rating 49 | 6 7 20 34 36 39 41 48 48 64 66 65 79 80 110 On Entrance 44 | 6 7 8 26 28 38 40 48 49 49 66 66 66 78 96 Naked Turns . | . . . . . . . . . . . . . . . Heaviest Build 81 | 12 48 56 68 46 42 50 55 60 74 52 51 81 55 66 Greatest Support 135 | 40 40 40 55 55 55 68 68 68 86 76 76 96 130 135 Greatest Overweight (x) 18 | . 1 18 4 . . . . . 1 . . . . . Average Overweight (x) . | . . 7 . . . . . . . . . . . . Largest Inventory Capacity 20 | 8 20 20 20 15 15 15 15 15 15 15 15 15 15 5 Average Capacity 15 | 8 16 20 19 15 15 15 15 15 15 15 15 15 5 5 Most Carried 20 | 6 11 16 20 15 15 15 15 15 15 15 15 15 14 5 Average Carried 13 | 4 8 14 18 14 15 14 15 14 13 15 14 14 5 4 Final Capacity 20 | 8 20 20 15 15 15 15 15 15 15 15 15 15 5 5 Final Carried 16 | 5 10 16 15 15 15 15 15 15 15 15 15 14 5 4 Class Distribution -------------------- 52% | Gladiator 17% | Scavenger-Mutant 17% | Mutant 8% | Gunner 3% | Scavenger-Gladiator Dominant Class ---------------- Mutant | -10/Materials Gunner | -10/Subcaves Scavenger-Mutant | -8/Materials Mutant | -7/Factory Gladiator | -7/Lower Caves Gladiator | -7/Lower Caves Gladiator | -7/Data Miner Gladiator | -6/Proximity Caves Gladiator | -6/Factory Gladiator | -6/Lower Caves Gladiator | -6/Lower Caves Gladiator | -5/Factory Scavenger-Gladiator | -5/Garrison Gladiator | -4/Factory Resources | -11 -10 -10 -8 -7 -7 -7 -7 -6 -6 -6 -6 -5 -5 -4 ----------- Run | Yrd Mat Sub Mat Fac Low Low Dat Pro Fac Low Low Fac Gar Fac Matter Collected 3402 | 274 183 260 310 242 54 259 . 70 765 50 76 332 269 258 Remotely 10 | . . . . . . . . . . . 10 . . . Salvage Created 10989 | 166 496 265 2203 465 . 166 . 107 3743 318 50 1397 505 1108 Parts 584 | 13 31 17 109 30 . 3 . 4 185 13 6 78 31 64 Haulers Intercepted 7 | . . . 5 . . . . . 2 . . . . . Recyclers Shooed 7 | 1 1 . 2 . . . . . 2 . . 1 . . Parts Field Recycled . | . . . . . . . . . . . . . . . Retrieved Matter . | . . . . . . . . . . . . . . . Parts Self-Destructed 32 | . . 9 . . . 4 . 3 . 10 6 . . . Prevented 1 | . . . . . 1 . . . . . . . . . Kills | -11 -10 -10 -8 -7 -7 -7 -7 -6 -6 -6 -6 -5 -5 -4 ------- Run | Yrd Mat Sub Mat Fac Low Low Dat Pro Fac Low Low Fac Gar Fac Combat Hostiles Destroyed 184 | . 10 7 28 9 . 6 . 2 55 4 4 25 16 18 Melee 133 | . . . 28 9 . . . 2 48 4 . 17 7 18 Guns 13 | . 7 6 . . . . . . . . . . . . AOE 38 | . 3 1 . . . 6 . . 7 . 4 8 9 . Classes Destroyed 18 | 2 4 2 6 1 . 1 . . 2 . . . . . Worker 12 | . 1 . 4 2 . . . . 4 . . 1 . . Builder 13 | . . . 3 1 . . . . 7 . . . . 2 Tunneler 9 | 4 2 . . 1 . . . . 2 . . . . . Hauler 7 | . . . 5 . . . . . 2 . . . . . Recycler 17 | 1 1 . 6 1 . . . . 6 . . 2 . . Operator 5 | . . . 2 1 . . . . 1 . . . . 1 Watcher 6 | . 1 . 2 1 . . . . 2 . . . . . Swarmer 58 | . 3 . 5 3 . . . . 20 . 4 9 9 5 Grunt 70 | . 7 . 15 3 . 3 . . 19 4 . 7 4 8 Brawler 4 | . . . 1 . . . . . 3 . . . . . Duelist 2 | . . . . . . . . . 2 . . . . . Sentry 15 | . . . 4 1 . . . 1 2 . . 5 1 1 Hunter 8 | . . . 3 . . . . . 2 . . 2 1 . Programmer 15 | . . . . 2 . . . 1 6 . . 2 . 4 Behemoth 2 | . . . . . . . . . 1 . . . 1 . Artisan 1 | . . 1 . . . . . . . . . . . . Subdweller 7 | . . 7 . . . . . . . . . . . . Fireman 3 | . . . . . . 3 . . . . . . . . Best Kill Streak 10 | 3 10 3 7 8 . 3 . 1 10 4 4 10 5 6 Combat Bots Only 10 | . 7 3 5 2 . 3 . 1 6 4 4 10 5 6 Max Kills in Single Turn 5 | 1 3 1 1 4 . 3 . 1 5 1 3 5 3 2 Gunslinging . | . . . . . . . . . . . . . . . Exploded 4 | . 2 1 . . . 3 . . 3 . 3 4 3 . Melee 2 | . . . 1 1 . . . 1 1 1 . 1 1 2 Uniques/NPCs Destroyed . | . . . . . . . . . . . . . . . Combat | -11 -10 -10 -8 -7 -7 -7 -7 -6 -6 -6 -6 -5 -5 -4 -------- Run | Yrd Mat Sub Mat Fac Low Low Dat Pro Fac Low Low Fac Gar Fac Hostile Shots Fired 1150 | . 33 48 215 62 . 6 . 13 429 16 3 170 56 99 Missed 353 | . 9 10 67 23 . 4 . 5 120 3 2 57 19 34 Hits 797 | . 24 38 148 39 . 2 . 8 309 13 1 113 37 65 Melee 22 | . . . 1 . . . . . 19 . . 2 . . Projectile 775 | . 24 38 147 39 . 2 . 8 290 13 1 111 37 65 AOE 9 | . . . . 3 . . . . 3 . . . . 3 Critical Strikes 23 | . . 2 4 . . . . . 10 . . 5 . 2 Actively Blocked 1 | . . . . . . . . . . . . 1 . . Damage Taken 12558 | . 276 832 1931 724 . 36 . 43 4647 243 12 1987 733 1094 Core 1727 | . 52 177 444 135 . . . 6 388 . . 223 139 163 Absorbed by Shields 716 | . . . . . . . . 20 560 . . . . 136 Redirected to Shielding 47 | . . . . . . . . . . . . 27 20 . Ignored by Resistances 472 | . . . . 9 . . . 8 161 . . 87 9 198 Regen/Repaired (Parts) 304 | . . . . 146 . . . . 158 . . . . . Core Remaining (%) 53 | 100 . 8 19 . . . . 79 . . 54 . 63 . Volleys Fired 102 | 11 32 31 . 4 . 4 . . 4 . 2 4 7 3 Largest 3 | 2 2 3 . 1 . 2 . . 1 . 1 1 1 1 Hottest 117 | 40 40 117 . 36 . 72 . . 36 . 36 36 36 36 Shots Fired 179 | 22 62 63 . 4 . 8 . . 4 . 2 4 7 3 Gun 140 | 22 60 58 . . . . . . . . . . . . Cannon 3 | . . 3 . . . . . . . . . . . . Launcher 36 | . 2 2 . 4 . 8 . . 4 . 2 4 7 3 Special . | . . . . . . . . . . . . . . . Kinetic 122 | 22 60 40 . . . . . . . . . . . . Thermal 21 | . . 21 . . . . . . . . . . . . Explosive 36 | . 2 2 . 4 . 8 . . 4 . 2 4 7 3 Electromagnetic . | . . . . . . . . . . . . . . . Robot Hit Streak 19 | 12 8 19 . . . 3 . . 5 . 6 1 . 2 Robot Miss Streak 3 | 1 2 3 . . . 1 . . . . . 1 . 1 Penetration Max . | . . . . . . . . . . . . . . . Secondary Targets 1 | . . 1 . . . . . . . . . . . . Max Gunslinging Chain 1 | . . 1 . . . . . . . . . . . . Shots Hit Robots 614 | 19 39 53 104 21 . 4 . 3 192 11 1 72 32 63 Core Hits 348 | 9 26 17 45 15 . 12 . 3 100 10 4 45 32 30 Critical Kills . | . . . . . . . . . . . . . . . Critical Parts Destroyed . | . . . . . . . . . . . . . . . Critical Strikes 59 | . . 1 10 3 . . . . 23 . . 8 5 9 Destroy 1 | . . 1 . . . . . . . . . . . . Sever 27 | . . . 10 3 . . . . 3 . . . 3 8 Impale 31 | . . . . . . . . . 20 . . 8 2 1 Melee Attacks 710 | . . . 148 47 . . . 5 268 17 . 98 43 84 Impact . | . . . . . . . . . . . . . . . Slashing 305 | . . . 148 47 . . . 5 25 . . . 25 55 Piercing 405 | . . . . . . . . . 243 17 . 98 18 29 Sneak Attacks 64 | . . . 32 1 . . . . 24 . . 4 . 3 Combat Hostiles . | . . . . . . . . . . . . . . . Follow-up Attacks 140 | . . . 18 4 . . . . 54 4 . 28 14 18 Damage Inflicted 23714 | 194 649 957 4311 1157 . 861 . 96 7512 331 291 2847 2013 2495 Guns 1441 | 194 418 829 . . . . . . . . . . . . Cannons 19 | . . 19 . . . . . . . . . . . . Explosions 4148 | . 231 109 . 462 . 861 . . 641 . 291 609 867 77 Melee 18089 | . . . 4311 695 . . . 96 6854 331 . 2238 1146 2418 Ramming 17 | . . . . . . . . . 17 . . . . . Kinetic 1171 | 194 418 559 . . . . . . . . . . . . Thermal 485 | . . 289 . 137 . . . . 59 . . . . . Explosive 3952 | . 231 109 . 325 . 861 . . 582 . 291 609 867 77 Electromagnetic . | . . . . . . . . . . . . . . . Impact . | . . . . . . . . . . . . . . . Slashing 8752 | . . . 4311 695 . . . 96 1057 . . . 711 1882 Piercing 9337 | . . . . . . . . . 5797 331 . 2238 435 536 Highest Corruption 7 | . . . . 1 1 1 1 1 7 2 2 . . 2 Average Corruption 2 | . . . . 1 1 1 1 1 3 2 2 . . 1 Corruption Purged 10 | . . . . 1 . . . . 9 . . . . . Corruption Blocked . | . . . . . . . . . . . . . . . Effects 57 | . . . . 2 1 5 . 1 42 4 2 . . . Message Errors 16 | . . . . 1 . . . . 14 1 . . . . Matter Fused 12 | . . . . 1 1 1 . 1 7 . 1 . . . Heat Flow Errors 9 | . . . . . . . . . 6 3 . . . . Energy Discharges 4 | . . . . . . . . . 4 . . . . . Parts Rejected 2 | . . . . . . . . . 2 . . . . . Data Loss (minor) 9 | . . . . . . 1 . . 7 . 1 . . . Data Loss (major) 2 | . . . . . . 1 . . 1 . . . . . Alerts 3 | . . . . . . 2 . . 1 . . . . . Overload Shots . | . . . . . . . . . . . . . . . Overflow Damage 1502 | . 31 . 350 79 . 49 . . 691 . . 90 52 160 Projectiles . | . . . . . . . . . . . . . . . Explosions 201 | . 31 . . 60 . 49 . . 12 . . . 49 . Melee 1301 | . . . 350 19 . . . . 679 . . 90 3 160 Knockbacks . | . . . . . . . . . . . . . . . Impact . | . . . . . . . . . . . . . . . Kinetic . | . . . . . . . . . . . . . . . Secondary . | . . . . . . . . . . . . . . . Self-Inflicted Damage 167 | . . . . . . . . . 38 . . 68 20 41 Shots 5 | . . . . . . . . . 1 . . 2 1 1 Rammed . | . . . . . . . . . . . . . . . Targets Rammed 1 | . . . . . . . . . 1 . . . . . Kicked 1 | . . . . . . . . . 1 . . . . . Crushed . | . . . . . . . . . . . . . . . Highest Temperature 266 | . 12 . . 19 . 6 . . 241 266 . . . 21 Average Temperature 67 | . 7 . . 10 . 2 . . 95 107 . . . 9 Received Heat Transfer 2500 | . 129 87 639 99 . 18 . 6 790 117 . 252 138 225 Siege Activations . | . . . . . . . . . . . . . . . Martial Activations . | . . . . . . . . . . . . . . . Shielding Activations 1 | . . . . . . . . . . . . . . 1 Total Turns 64 | . . . . . . . . . . . . . . 64 Longest Duration 64 | . . . . . . . . . . . . . . 64 Robots Disrupted . | . . . . . . . . . . . . . . . Combat Hostiles . | . . . . . . . . . . . . . . . Robots Corrupted . | . . . . . . . . . . . . . . . Combat Hostiles . | . . . . . . . . . . . . . . . Parts Fried 2 | . . . . . . . . . . . . . . 2 Impact Corruptions . | . . . . . . . . . . . . . . . Robots Melted . | . . . . . . . . . . . . . . . Combat Hostiles . | . . . . . . . . . . . . . . . Parts Melted . | . . . . . . . . . . . . . . . Heat Transferred 634 | . . 484 . 100 . . . . 50 . . . . . Parts Sabotaged . | . . . . . . . . . . . . . . . Parts Stolen . | . . . . . . . . . . . . . . . Parts Stripped . | . . . . . . . . . . . . . . . Power Chain Reactions . | . . . . . . . . . . . . . . . Alert | -11 -10 -10 -8 -7 -7 -7 -7 -6 -6 -6 -6 -5 -5 -4 ------- Run | Yrd Mat Sub Mat Fac Low Low Dat Pro Fac Low Low Fac Gar Fac Maximum Alert Level 5 | . . . 1 1 . . . . 5 . . 2 3 2 Low Security (%) 39 | 100 100 . 75 87 . . . . . . . . . . Level 1 8 | . . . 24 12 . . . . . . . 9 . . Level 2 23 | . . . . . . . . . 7 . . 90 50 100 Level 3 15 | . . . . . . . . . 45 . . . 49 . Level 4 7 | . . . . . . . . . 26 . . . . . Level 5 5 | . . . . . . . . . 18 . . . . . High Security . | . . . . . . . . . 2 . . . . . Max Security . | . . . . . . . . . . . . . . . Peak Influence 1744 | 10 190 . 296 327 . . . . 1744 . . 693 1073 685 Initial 900 | . . . . 130 . . . . 900 . . 554 487 562 Average 508 | 1 73 . 144 69 . . . . 1118 . . 509 758 518 Influence Increases 6956 | 25 310 . 1097 509 . 70 . 50 2854 95 90 733 596 527 Destroy 0b10 Robot/C 3480 | . 200 . 560 180 . 60 . 40 1100 80 80 500 320 360 Destroy 0b10 Robot/NC 350 | 25 25 . 110 35 . . . . 120 5 . 15 . 15 Destroy Leader 686 | . 32 . 124 42 . 10 . 10 248 10 10 100 40 60 Successful Hack 57 | . 12 . 2 15 . . . . 18 . . 10 . . Disable Machine 180 | . . . . 75 . . . . 75 . . 15 15 . Anti-Garrison Action 50 | . . . . . . . . . . . . . 50 . Destroy Structure 368 | . 11 . 1 57 . . . . 63 . . 78 96 62 Advance Influence 900 | . . . . . . . . . 900 . . . . . Partial Spotted 30 | . . . . 15 . . . . . . . . 15 . Lose Combat Pursuer 855 | . 30 . 300 90 . . . . 330 . . 15 60 30 Influence Decreases 6279 | 25 300 10 808 764 34 70 . 50 1110 776 273 916 220 923 Entered New Map 2075 | . . 6 . 159 14 . . . . 646 203 326 210 511 Time Decay 3000 | 25 300 4 558 331 20 70 . 50 670 130 70 410 . 362 Search Patrol Dispatched 300 | . . . . . . . . . 300 . . . . . Lost Part 330 | . . . 100 . . . . . 140 . . 30 10 50 Purge Threat 574 | . . . 150 274 . . . . . . . 150 . . Squads Dispatched 41 | . 2 . 4 4 . . . . 17 . . 10 . 4 Investigation 9 | . . . 2 1 . . . . 3 . . 3 . . Extermination 8 | . . . . 2 . . . . 4 . . 1 . 1 Reinforcement 14 | . 2 . 2 1 . . . . 5 . . 2 . 2 Assault 7 | . . . . . . . . . 5 . . 1 . 1 Garrison 3 | . . . . . . . . . . . . 3 . . Intercept . | . . . . . . . . . . . . . . . Searches Triggered 2 | . . . . . . . . . 2 . . . . . Data Miner Redirects 6 | . . . . . . . . . 5 . . 1 . . Construction Impeded 2 | . . . . 1 . . . . 1 . . . . . Haulers Reinforced 1 | . . . . . . . . . 1 . . . . . Active Scanning Responses . | . . . . . . . . . . . . . . . Cargo Convoy Interrupts . | . . . . . . . . . . . . . . . Stealth | -11 -10 -10 -8 -7 -7 -7 -7 -6 -6 -6 -6 -5 -5 -4 --------- Run | Yrd Mat Sub Mat Fac Low Low Dat Pro Fac Low Low Fac Gar Fac Distress Signals 10 | . 1 . 1 2 . . . 1 5 . . . . . Communications Jammed . | . . . . . . . . . . . . . . . Distress Signals . | . . . . . . . . . . . . . . . Times Spotted 301 | . 20 8 55 25 . 7 . 8 89 4 4 37 17 27 Peak Tracking Total 9 | . 4 3 9 6 . 4 . 3 6 4 3 6 7 7 Tactical Retreats 37 | . 2 . 11 3 . . . . 15 . . 1 3 2 Traps | -11 -10 -10 -8 -7 -7 -7 -7 -6 -6 -6 -6 -5 -5 -4 ------- Run | Yrd Mat Sub Mat Fac Low Low Dat Pro Fac Low Low Fac Gar Fac Traps Triggered 6 | . . . 1 2 . . . . 1 . . . 1 1 Indirectly . | . . . . . . . . . . . . . . . Trap Hack Attempts . | . . . . . . . . . . . . . . . Triggered . | . . . . . . . . . . . . . . . Disarmed . | . . . . . . . . . . . . . . . Reprogrammed . | . . . . . . . . . . . . . . . Reused . | . . . . . . . . . . . . . . . Traps Extracted . | . . . . . . . . . . . . . . . Installed . | . . . . . . . . . . . . . . . Triggered . | . . . . . . . . . . . . . . . Machines | -11 -10 -10 -8 -7 -7 -7 -7 -6 -6 -6 -6 -5 -5 -4 ---------- Run | Yrd Mat Sub Mat Fac Low Low Dat Pro Fac Low Low Fac Gar Fac Machines Disabled 13 | . . . . 5 . . . . 5 . . 1 2 . Max in Single Turn 5 | . . . . 5 . . . . 4 . . 1 1 . Garrison Access 1 | . . . . 1 . . . . . . . . . . Garrison Relay 1 | . . . . . . . . . . . . . 1 . Machines Repaired . | . . . . . . . . . . . . . . . Machines Dismantled . | . . . . . . . . . . . . . . . Machines Sabotaged . | . . . . . . . . . . . . . . . Overloaded Fab Kills . | . . . . . . . . . . . . . . . Hacking | -11 -10 -10 -8 -7 -7 -7 -7 -6 -6 -6 -6 -5 -5 -4 --------- Run | Yrd Mat Sub Mat Fac Low Low Dat Pro Fac Low Low Fac Gar Fac Machines Accessed 37 | . 3 1 7 8 1 1 4 . 6 . . 5 1 . Terminals 17 | . 3 . 4 4 . . . . 2 . . 3 1 . Fabricators 4 | . . . . 1 . . . . 3 . . . . . Repair Stations 5 | . . . 2 2 . . . . 1 . . . . . Recycling Units 1 | . . . 1 . . . . . . . . . . . Scanalyzers . | . . . . . . . . . . . . . . . Garrison Access 3 | . . . . 1 . . . . . . . 2 . . Total Hacks 118 | . 7 1 19 28 1 1 32 . 15 . . 13 1 . Successful 72 | . 3 1 5 17 1 1 32 . 9 . . 2 1 . Failed 46 | . 4 . 14 11 . . . . 6 . . 11 . . Catastrophic 9 | . . . 5 1 . . . . 2 . . 1 . . Database Lockouts . | . . . . . . . . . . . . . . . Manual 38 | . 7 . 11 13 . . . . 5 . . 2 . . Terminals 47 | . 7 . 11 15 . . . . 4 . . 9 1 . Fabricators 9 | . . . . 1 . . . . 8 . . . . . Repair Stations 18 | . . . 5 10 . . . . 3 . . . . . Recycling Units 3 | . . . 3 . . . . . . . . . . . Scanalyzers . | . . . . . . . . . . . . . . . Garrison Access 6 | . . . . 2 . . . . . . . 4 . . Terminal Hacks 46 | . 1 1 3 4 1 1 32 . 1 . . 1 1 . Record 12 | . . . 1 . . . 11 . . . . . . . Part Schematic 11 | . . . . . . . 11 . . . . . . . Robot Schematic 7 | . . . . . . . 7 . . . . . . . Prototype ID Bank 3 | . . . . . . . 3 . . . . . . . Open Door 3 | . . 1 . . 1 1 . . . . . . . . Branch Access Points 2 | . . . . 1 . . . . 1 . . . . . Emergency Access Points 1 | . . . . . . . . . . . . . 1 . Terminal Index 1 | . 1 . . . . . . . . . . . . . Alert Level 1 | . . . . 1 . . . . . . . . . . Unreport Threat 4 | . . . 1 2 . . . . . . . 1 . . Dispatch Records 1 | . . . 1 . . . . . . . . . . . Fabricator Hacks 5 | . . . . . . . . . 5 . . . . . Load Schematic 3 | . . . . . . . . . 3 . . . . . Build 2 | . . . . . . . . . 2 . . . . . Repair Station Hacks 10 | . . . 2 8 . . . . . . . . . . Scan Component 6 | . . . 2 4 . . . . . . . . . . Repair 4 | . . . . 4 . . . . . . . . . . Recycling Unit Hacks . | . . . . . . . . . . . . . . . Scanalyzer . | . . . . . . . . . . . . . . . Garrison Access Hacks 2 | . . . . 1 . . . . . . . 1 . . Unlock Access 1 | . . . . . . . . . . . . 1 . . Seal Access 1 | . . . . 1 . . . . . . . . . . Unauthorized Hacks 9 | . 2 . . 4 . . . . 3 . . . . . Terminals 5 | . 2 . . 3 . . . . . . . . . . Assimilate 1 | . . . . 1 . . . . . . . . . . Botnet 1 | . . . . 1 . . . . . . . . . . Operators 1 | . 1 . . . . . . . . . . . . . Skim 2 | . 1 . . 1 . . . . . . . . . . Fabricators 3 | . . . . 1 . . . . 2 . . . . . Liberate 2 | . . . . 1 . . . . 1 . . . . . Recompile 1 | . . . . . . . . . 1 . . . . . Repair Stations 1 | . . . . . . . . . 1 . . . . . Patch 1 | . . . . . . . . . 1 . . . . . Recycling Units . | . . . . . . . . . . . . . . . Scanalyzers . | . . . . . . . . . . . . . . . Garrison Access . | . . . . . . . . . . . . . . . Data Cores Recovered . | . . . . . . . . . . . . . . . Used . | . . . . . . . . . . . . . . . Hacking Detections 24 | . 3 . 7 5 . . . . 5 . . 4 . . Full Trace Events 6 | . . . 1 1 . . . . 1 . . 3 . . Feedback Events . | . . . . . . . . . . . . . . . Feedback Blocked . | . . . . . . . . . . . . . . . Robot Schematics Acquired 7 | . . . . . . . 7 . . . . . . . Robots Built . | . . . . . . . . . . . . . . . Authchips . | . . . . . . . . . . . . . . . Time . | . . . . . . . . . . . . . . . Total Robot Build Rating . | . . . . . . . . . . . . . . . Part Schematics Acquired 11 | . . . . . . . 11 . . . . . . . Parts Built 4 | . . . . . . . . . 4 . . . . . Authchips 1 | . . . . . . . . . 1 . . . . . Time 212 | . . . . . . . . . 212 . . . . . Total Part Build Rating 24 | . . . . . . . . . 24 . . . . . Parts Repaired 4 | . . . . 4 . . . . . . . . . . Time 116 | . . . . 116 . . . . . . . . . . Parts Recycled . | . . . . . . . . . . . . . . . Recycled Matter . | . . . . . . . . . . . . . . . Retrieved Matter . | . . . . . . . . . . . . . . . Retrieved Components . | . . . . . . . . . . . . . . . Parts Scanalyzed . | . . . . . . . . . . . . . . . Part Schematics Acquired . | . . . . . . . . . . . . . . . Parts Damaged . | . . . . . . . . . . . . . . . Bothacking | -11 -10 -10 -8 -7 -7 -7 -7 -6 -6 -6 -6 -5 -5 -4 ------------ Run | Yrd Mat Sub Mat Fac Low Low Dat Pro Fac Low Low Fac Gar Fac Used RIF Installer . | . . . . . . . . . . . . . . . Robots Hacked . | . . . . . . . . . . . . . . . Non-combat . | . . . . . . . . . . . . . . . Combat . | . . . . . . . . . . . . . . . Robot Hacks Applied . | . . . . . . . . . . . . . . . Relay Couplers Released 3 | . . . . . . . . . . . . . 3 . Machine Destruction 3 | . . . . . . . . . . . . . 3 . Fabnet Peak Effective % . | . . . . . . . . . . . . . . . Robots Rewired . | . . . . . . . . . . . . . . . Allies Hacked . | . . . . . . . . . . . . . . . Hacks Repelled . | . . . . . . . . . . . . . . . Allies | -11 -10 -10 -8 -7 -7 -7 -7 -6 -6 -6 -6 -5 -5 -4 -------- Run | Yrd Mat Sub Mat Fac Low Low Dat Pro Fac Low Low Fac Gar Fac Total Allies . | . . . . . . . . . . . . . . . Largest Group . | . . . . . . . . . . . . . . . Highest-Rated Group . | . . . . . . . . . . . . . . . Highest-Rated Ally . | . . . . . . . . . . . . . . . Total Orders . | . . . . . . . . . . . . . . . Ally Attacks . | . . . . . . . . . . . . . . . Total Damage . | . . . . . . . . . . . . . . . Kills . | . . . . . . . . . . . . . . . Allies Corrupted . | . . . . . . . . . . . . . . . Allies Melted . | . . . . . . . . . . . . . . . Intel | -11 -10 -10 -8 -7 -7 -7 -7 -6 -6 -6 -6 -5 -5 -4 ------- Run | Yrd Mat Sub Mat Fac Low Low Dat Pro Fac Low Low Fac Gar Fac Active Infowar (turns) 5203 | 31 93 . 661 1140 424 1044 99 401 271 211 159 578 6 85 Sensors 2982 | . . . . 788 424 1044 99 401 226 . . . . . IFF 999 | . . . . . . . . . 45 211 159 578 6 . Structural 85 | . . . . . . . . . . . . . . 85 Seismic 124 | 31 93 . . . . . . . . . . . . . Machine Analysis 1173 | . . . 661 512 . . . . . . . . . . Robot Analysis Total . | . . . . . . . . . . . . . . . Derelict Logs Recovered 4 | . . . . . . . . 2 . 1 1 . . . Drone Launches . | . . . . . . . . . . . . . . . Drone Recoveries . | . . . . . . . . . . . . . . . Exploration | -11 -10 -10 -8 -7 -7 -7 -7 -6 -6 -6 -6 -5 -5 -4 ------------- Run | Yrd Mat Sub Mat Fac Low Low Dat Pro Fac Low Low Fac Gar Fac Turns Passed 13606 | 113 784 1669 2240 1283 426 1080 101 436 2667 273 159 986 567 822 Spaces Moved 6758 | 20 379 356 1025 781 347 395 82 328 1373 183 121 616 340 412 Core 127 | . . 125 2 . . . . . . . . . . . Treads 486 | 20 379 76 11 . . . . . . . . . . . Legs 5926 | . . . 948 781 347 395 82 328 1373 183 121 616 340 412 Wheels 219 | . . 155 64 . . . . . . . . . . . Hover . | . . . . . . . . . . . . . . . Flight . | . . . . . . . . . . . . . . . Fastest Speed 95 | 160 160 130 95 120 122 122 122 122 120 120 120 108 108 120 Average Speed 148 | 160 176 438 170 121 122 122 122 122 124 120 120 113 114 123 Slowest Speed 950 | 160 240 950 260 122 122 122 122 122 192 120 120 120 120 124 Overloaded Moves . | . . . . . . . . . . . . . . . Propulsion Burnouts . | . . . . . . . . . . . . . . . Robots Hopped . | . . . . . . . . . . . . . . . Potential Cave-ins . | . . . . . . . . . . . . . . . Cave-ins Triggered . | . . . . . . . . . . . . . . . Exploration Rate (%) 37 | 3 77 23 63 20 52 46 69 58 33 33 13 15 37 13 Regions Visited 14 Branch Regions 7 Pre-discovered Areas 1 | . . . . . . . 1 . . . . . . . Known Exits Taken 7 | . . . 1 1 1 1 1 . 1 . . 1 . . Unknown Exits Taken 6 | 1 1 1 . . . . . 1 . 1 1 . . . Scrap Searched 11 | . . . . . 1 4 . 2 . 1 3 . . . Spaces Dug 106 | . . . 1 25 . . . . 18 1 12 21 20 8 Terrain Destroyed 318 | . 10 8 1 55 . 55 . . 66 1 22 37 34 29 Melee 38 | . . . 1 13 . . . . 9 1 . 6 . 8 Projectile . | . . . . . . . . . . . . . . . AOE 280 | . 10 8 . 42 . 55 . . 57 . 22 31 34 21 Terrain Rammed . | . . . . . . . . . . . . . . . Walls Destroyed . | . . . . . . . . . . . . . . . Machines Disabled . | . . . . . . . . . . . . . . . Actions | -11 -10 -10 -8 -7 -7 -7 -7 -6 -6 -6 -6 -5 -5 -4 --------- Run | Yrd Mat Sub Mat Fac Low Low Dat Pro Fac Low Low Fac Gar Fac Total 9375 | 81 435 410 1342 1054 349 983 82 355 2001 224 132 797 467 663 Wait 1504 | 45 9 1 88 189 . 560 . 16 309 22 . 64 56 145 Move 6745 | 19 378 355 1024 780 346 394 81 327 1372 182 120 616 339 412 Hop . | . . . . . . . . . . . . . . . Pick Up 119 | 1 5 10 35 10 . 3 . 1 29 1 2 8 4 10 Fast Attach 53 | 1 . 2 15 5 . . . . 14 . 2 4 3 7 Attach 54 | . . 4 8 5 . . . 1 20 . . 8 2 6 Detach 2 | . . . . . . . . . 1 . . 1 . . Swap 139 | 2 8 5 8 12 2 14 1 5 34 5 2 16 15 10 Drop 151 | 2 3 1 40 12 1 8 . 1 32 3 4 14 15 15 Fire 102 | 11 32 31 . 4 . 4 . . 4 . 2 4 7 3 Melee 502 | . . . 122 37 . . . 4 185 11 . 62 26 55 Ram . | . . . . . . . . . . . . . . . Kick 1 | . . . . . . . . . 1 . . . . . Crush . | . . . . . . . . . . . . . . . Escape Stasis . | . . . . . . . . . . . . . . . Rewire 1 | . . 1 . . . . . . . . . . . . Trap . | . . . . . . . . . . . . . . . Miscellaneous 2 | . . . 2 . . . . . . . . . . . Route ------- -11/Scrapyard -10/Materials (discovered 3 exits: [*Mat x2] / *Sub) -10/Subcaves -8/Materials -7/Factory (discovered 4 exits: Sto x2 / *Low x2) -7/Lower Caves -7/Lower Caves (discovered 2 exits: *Fac / *Dat) -7/Data Miner -6/Proximity Caves -6/Factory (discovered 4 exits: *Low x2 / Ext x2) -6/Lower Caves -6/Lower Caves -5/Factory -5/Garrison -4/Factory History --------- Turn | Location | Event 17 | -11/Scrapyard | Discovered new exit (range 3) 114 | -11/Scrapyard | Entered Materials 331 | -10/Materials | Build established: Mutant 452 | -10/Materials | Destroyed 7 combat bots 522 | -10/Materials | Discovered new exit (range 5) 607 | -10/Materials | Discovered new exit (range 15) 864 | -10/Materials | Discovered new exit (range 10) 898 | -10/Materials | Entered Subcaves 1014 | -10/Subcaves | Core integrity fell below 50% 1160 | -10/Subcaves | Shifting Twisted Machinery released Mak. Light Armor Plating 1323 | -10/Subcaves | Shifting Twisted Machinery released Mak. Shrapnel Gun 1348 | -10/Subcaves | A Subdweller sparked back to life 1348 | -10/Subcaves | A Subdweller sparked back to life 1348 | -10/Subcaves | A Subdweller sparked back to life 1376 | -10/Subcaves | Core integrity fell below 20% 1404 | -10/Subcaves | Lost 4 parts (1p2n1w) 1430 | -10/Subcaves | Found Prototype Power Core 1430 | -10/Subcaves | Identified Meta Core 1431 | -10/Subcaves | Attached Meta Core, gained temporary slots: Propulsion, Utility, Weapon 1753 | -10/Subcaves | Ambushed by angry Subdweller bent on revenge 1785 | -10/Subcaves | Build established: Gunner 1885 | -10/Subcaves | A swath of the cavern ceiling suddenly collapsed 2472 | -10/Subcaves | Discovered new exit (range 9) 2567 | -10/Subcaves | Entered Materials 2567 | -8/Materials | Evolved 4 slots: Propulsion x2, Utility x2 2861 | -8/Materials | Lost 6 parts (4n1u1w) 2863 | -8/Materials | Core integrity fell below 50% 2932 | -8/Materials | Build established: Mutant 3271 | -8/Materials | Build established: Scavenger-Mutant 4196 | -8/Materials | Discovered new exit (range 15) 4417 | -8/Materials | Core integrity fell below 20% 4806 | -8/Materials | Identified exit to Factory 4807 | -8/Materials | Entered Factory 4807 | -7/Factory | Evolved 2 slots: Utility x1, Weapon x1 5136 | -7/Factory | Identified exit to Storage 5136 | -7/Factory | Identified exit to Lower Caves 5173 | -7/Factory | Repaired Aluminum Leg 5200 | -7/Factory | Repaired Aluminum Leg 5240 | -7/Factory | Repaired Hrd. Medium Armor Plating 5267 | -7/Factory | Repaired Aluminum Leg 5762 | -7/Factory | Build established: Mutant 6090 | -7/Factory | Entered Lower Caves 6214 | -7/Lower Caves | Entered a destroyed Warlord outpost 6257 | -7/Lower Caves | Build established: Gladiator 6374 | -7/Lower Caves | Encountered a Warlord checkpoint 6501 | -7/Lower Caves | Discovered new exit (range 15) 6513 | -7/Lower Caves | Identified exit to Lower Caves 6516 | -7/Lower Caves | Entered another Lower Caves area 6518 | -7/Lower Caves | Discovered new exit (range 12) 7579 | -7/Lower Caves | Discovered new exit (range 15) 7595 | -7/Lower Caves | Identified exit to Data Miner 7596 | -7/Lower Caves | Entered Data Miner 7596 | -7/Data Miner | Discovered new exit (range 6) 7620 | -7/Data Miner | Met Data Miner 7640 | -7/Data Miner | Learned location of Section 7 (-2) 7640 | -7/Data Miner | Acquired the access code to Warlord's prototype stash 7662 | -7/Data Miner | Received God Mode back door access code from Data Miner 7694 | -7/Data Miner | Identified exit to Proximity Caves 7697 | -7/Data Miner | Entered Proximity Caves 7699 | -6/Proximity Caves | Spotter reported a threat 7700 | -6/Proximity Caves | Spotter reported a threat 7753 | -6/Proximity Caves | Spotter reported a threat 7871 | -6/Proximity Caves | Learned 4 Factory zone layouts 7888 | -6/Proximity Caves | Learned Factory garrison access intel 7912 | -6/Proximity Caves | Spotter reported a threat 8023 | -6/Proximity Caves | Spotter reported a threat 8023 | -6/Proximity Caves | Spotter reported a threat 8031 | -6/Proximity Caves | Attracted the attention of an 0b10 checkpoint 8076 | -6/Proximity Caves | Spotter reported a threat 8076 | -6/Proximity Caves | Spotter reported a threat 8123 | -6/Proximity Caves | Discovered new exit (range 8) 8133 | -6/Proximity Caves | Entered Factory 8133 | -6/Factory | Evolved 2 slots: Utility x2 8135 | -6/Factory | Loaded intel: 4 garrison access locations 8285 | -6/Factory | Spotted B-75 Beast 8358 | -6/Factory | Destroyed B-75 Beast 8483 | -6/Factory | Search patrols dispatched 8743 | -6/Factory | Incoming investigation squad redirected 8833 | -6/Factory | Search patrols dispatched 8890 | -6/Factory | Fabricated Thunder Leg (x2) 9053 | -6/Factory | Identified exit to Lower Caves 9053 | -6/Factory | Identified exit to Extension 9883 | -6/Factory | First assault squad dispatched 9904 | -6/Factory | Incoming assault squad redirected 10336 | -6/Factory | Lost 3 parts (1n2u) 10579 | -6/Factory | Incoming investigation squad redirected 10603 | -6/Factory | Incoming assault squad redirected 10607 | -6/Factory | Incoming assault squad redirected 10663 | -6/Factory | Fabricated Thunder Leg? 10727 | -6/Factory | High security lockdown imminent 10789 | -6/Factory | Lost 3 parts (1n2u) 10800 | -6/Factory | Entered Lower Caves 10902 | -6/Lower Caves | Learned Factory emergency access door positions 11065 | -6/Lower Caves | Discovered new exit (range 8) 11073 | -6/Lower Caves | Entered another Lower Caves area 11078 | -6/Lower Caves | Learned Factory trap positions 11194 | -6/Lower Caves | Discovered new exit (range 10) 11232 | -6/Lower Caves | Entered Factory 11232 | -5/Factory | Evolved 2 slots: Propulsion x1, Utility x1 11233 | -5/Factory | Loaded intel: 89 trap records 11832 | -5/Factory | First assault squad dispatched 11969 | -5/Factory | Garrison activated, responded to threat 12056 | -5/Factory | Destroyed 10 combat bots 12197 | -5/Factory | Destroyed 8 combat bots 12200 | -5/Factory | Incoming assault squad redirected 12218 | -5/Factory | Identified exit to Garrison 12218 | -5/Factory | Entered Garrison 12264 | -5/Garrison | Triggered checkpoint 12357 | -5/Garrison | Garrison Relay disabled 12431 | -5/Garrison | Spotted B-75 Beast 12471 | -5/Garrison | Destroyed B-75 Beast 12507 | -5/Garrison | Triggered checkpoint 12605 | -5/Garrison | Build established: Scavenger-Gladiator 12675 | -5/Garrison | Spotted B-75 Beast 12762 | -5/Garrison | Discovered new exit (range 8) 12785 | -5/Garrison | Entered Factory 12785 | -4/Factory | Evolved 2 slots: Power x1, Utility x1 12945 | -4/Factory | Build established: Gladiator 13535 | -4/Factory | First assault squad dispatched 13607 | -4/Factory | Self-destructed Last Messages --------------- 13590_ U-05 Engineer lays Concrete. 13591_ Acquired 10 matter. 13592_ U-05 Engineer lays Concrete. 13592_ K-01 Serf collects debris. 13593_ U-05 Engineer lays Concrete. 13594_ Adv. Heat Sink fried. 13594_ G-67 Veteran destroyed. 13594_ U-05 Engineer builds a Wall. 13597_ K-01 Serf collects debris. 13598_ U-05 Engineer builds a Wall. 13600_ K-01 Serf collects debris. 13602_ G-67 Veteran Flexi-carbon Leg severed. 13603_ U-05 Engineer lays Concrete. 13604_ K-01 Serf collects debris. 13604_ U-05 Engineer lays Concrete. 13605_ Imp. Medium Armor Plating destroyed. 13605_ Destroyed Imp. Medium Armor Plating. 13605_ U-05 Engineer builds a Wall. 13606_ U-05 Engineer lays Concrete. 13607_ K-01 Serf collects debris. Map ----- +----------------------------------------------------+ | ?????????????????????????????????????????????????? | | ?????????????????????????????????????????????????? | | ?????????????????????????????????????????????????? | | ?????????????????????????????????????????????????? | | ?????????????????????????????????????????????????? | | ?????????????????????????????????????????????????? | | ???????????????????????????#######???????????????? | | ?????????????????????????? #???????????????? | | ?????????????????????????# " ! #???????????????? | | ?????????????????????????# " ###########?????? | | ?????????????????????????# " !!| # #?????? | | ?????????????????????????# " !!| # #?????? | | ?????????????????????????# " !|| # #?????? | | ?????????????# ?????????# " # """" #?????? | | ?????????????# ???????## " # """" #?????? | | ?????????????# ??????? " = # """" #?????? | | ?????????????# s ??????# " # """" #?????? | | ?????????????# ??????# # ! %[ #?????? | | ?????????????# ss############+######+#########?? | | ?????????????# ![%*= !== #?? | | ?????????????# !* % =%== A[ #?? | | ?????????????+ =%= % ![^ #?? | | ?????????????# ! * k +?? | | ?????????????# [u ==k u ^% #?? | | ??????????????##########= #+#######+### #?? | | ????????????????## %%%@ g # #?? | | ???????????????## !=! """"""""" # #?? | | ???????????????# [%[ # #?? | | ???????????????# = =# """"""""" # #?? | | ???????????????## [%# # #?? | | ????????????????#; ! ############## #?? | | ??????????????# ; % #?? ??# #?? | | ??????????????##### """T""" #??? ?# #? | | ??????????????????###########??? ?# #?" | | ????????????????????????????????? # # | | ??????????????????????????????????" """" # # " | | ??????????????????????????????????" """" + + | | ??????????????????????????????????" """" # # " | | ??????????????????????????????????? """" # # | | ??????????????????????????????????? """"?# ### | | ????????????????????????????????????""""?# | | ????????????????????????????????????"""??# | | ????????????????????????????????????? ??# | | ?????????????????????????????????????#???# ! | | ?????????????????????????????????????????# = % | | ????????????????????????????????????????#####+#### | | ????????????????????????????????????????# |=[[ | | ????????????????????????????????????????# [ | | ????????????????????????????????????????# ! !!! | | ????????????????????????????????????????# !!!! | +----------------------------------------------------+ Best States ------------- Heat Dissipation 43 Energy Generation 41 Energy Capacity 600 Matter Stores 300 Matter Capacity 300 Sight Range 16 Robot Scan Range 15 Terrain Scan Density 10 Additional Mass Support 9 Armor Coverage 825 Resistance: KI 30 Resistance: TH 30 Resistance: EM 15 Weapon Shielding 66 Melee Speed Boost 30 Evasion (%) 80 Targeting Accuracy 5 Melee Accuracy 16 Target Analysis 5 Core Analysis 6 Armor Integrity Analysis 30 Recoil Reduction 2 Offensive Hacking 22 Authchip Count 1 Item Schematics ----------------- Combat Drone Bay | -7/Data Miner | Free Lgt. Regenerative Plating | -7/Data Miner | Free Exp. Weapon Shielding | -7/Data Miner | Free Cld. Cesium-ion Thruster | -7/Data Miner | Free Antimatter Cannon | -7/Data Miner | Free Thunder Leg | -7/Data Miner | Free Lrn. Tractor Beam | -7/Data Miner | Free Hvy. Phase Cannon | -7/Data Miner | Free Imp. Remote Datajack | -7/Data Miner | Free Matter Neutralizer | -7/Data Miner | Free Centrium Wheel | -7/Data Miner | Free Robot Schematics ------------------ M-14 Sweeper | -7/Data Miner | Free L-41 Fighter | -7/Data Miner | Free G-50 Soldier | -7/Data Miner | Free R-10 Processor | -7/Data Miner | Free I-36 Angel | -7/Data Miner | Free B-48 Gladiator | -7/Data Miner | Free Y-64 Sentinel | -7/Data Miner | Free Fabricated ------------ Thunder Leg | x2 | -6/Factory | Authchip Thunder Leg | x2 | -6/Factory Repaired ---------- Aluminum Leg | 50% | -7/Factory Aluminum Leg | 71% | -7/Factory Hrd. Medium Armor Plating | 76% | -7/Factory Aluminum Leg | 78% | -7/Factory Alien Tech Used ----------------- None Achievements -------------- None Challenges ------------ None Game ------ Seed LatentTacticalPendant Manual? 0 Play Time 01:22:23 Cumulative 932.3 hours Start 2025.06.24 @ 13:35:55 End 2025.06.24 @ 17:48:06 Sessions 3 Manual Loads 0 Difficulty Rogue Special Mode None Game No. 1547 Rogue 1547 Adventurer 0 Explorer 0 Win Type - Total 91 Types 54/1/16/14/4/0/0/1/0/1 Lore% 92 Gallery% 84 Achievement% 85 Wizard Run 0 Options --------- Layout 0 ASCII 1 Keyboard 0 Movement Numpad Keybinds 1 Fullscreen 2 Font 18/SmallcapsGlow Map View 76x50 Zoom Use 0% Tactical HUD 1 Map Filters NONE Filters NONE Steam 1 RUN: c1d012f0-32a6-496b-9a39-e6f0bae84d8b